fUSD/lending_fUSD_20241227
["ID","MTS","AMOUNT","RATE_DAILY","PERIOD"]
[346775494,1735277540109,500.0,0.00012521,2]
[346775495,1735277540396,500.0,0.00012795,2]
[346775496,1735277540667,2470.77,0.00012522,2]
[346775497,1735277541133,2470.77,0.00012796,2]
[346775498,1735277542399,1580.95,0.00011973,2]
[346775499,1735277542645,1580.95,0.00012247,2]
[346775500,1735277542890,1580.95,0.00012521,2]
[346775501,1735277543128,1580.95,0.00012795,2]
[346775502,1735277543971,1527.06,0.00011973,2]
[346775503,1735277544213,1527.06,0.00012247,2]
[346775504,1735277544266,250.0,0.00012677,2]
[346775505,1735277544471,1527.06,0.00012521,2]
[346775506,1735277544742,1527.06,0.00012795,2]
[346775507,1735277546334,309.02933763,0.00011973,2]
[346775508,1735277548423,1332.74,0.00011976,2]
[346775509,1735277549766,1332.74,0.0001225,2]
[346775510,1735277550505,1332.74,0.00012524,2]
[346775511,1735277551944,586.75,0.00011973,2]
[346775512,1735277551991,598.56,0.00011973,2]
[346775513,1735277552041,586.75,0.00012247,2]
[346775514,1735277552097,598.56,0.00012247,2]
[346775515,1735277552161,586.75,0.00012521,2]
[346775516,1735277552207,598.56,0.00012521,2]
[346775517,1735277552268,1332.74,0.00012798,2]
[346775518,1735277552319,586.75,0.00012795,2]
[346775519,1735277552371,598.56,0.00012795,2]
[346775520,1735277552433,3685.0,0.00012258,2]
[346775521,1735277553176,966.87,0.00011973,2]
[346775522,1735277553478,966.87,0.00012247,2]
[346775523,1735277553605,10359.51,0.00011973,2]
[346775524,1735277554077,966.87,0.00012521,2]
[346775525,1735277554245,10359.51,0.00012247,2]
[346775526,1735277554384,966.87,0.00012795,2]
[346775527,1735277554797,10359.51,0.00012521,2]
[346775528,1735277555717,10359.51,0.00012795,2]
[346775529,1735277557474,1985.06,0.00011974,2]
[346775530,1735277557881,536.0,0.00012258,2]
[346775531,1735277558553,1985.06,0.00012248,2]
[346775532,1735277559264,1985.06,0.00012522,2]
[346775533,1735277559325,500.0,0.00011973,2]
[346775534,1735277559604,500.0,0.00012247,2]
[346775535,1735277559869,500.0,0.00012521,2]
[346775536,1735277560147,500.0,0.00012795,2]
[346775537,1735277560630,1985.06,0.00012796,2]
[346775538,1735277560995,1635.5,0.00011976,2]
[346775539,1735277561806,1635.5,0.0001225,2]
[346775540,1735277562235,3140.04,0.00011973,2]
[346775541,1735277562287,500.0,0.00011973,2]
[346775542,1735277562498,1635.5,0.00012524,2]
[346775543,1735277562549,500.0,0.00012247,2]
[346775544,1735277562838,3140.04,0.00012247,2]
[346775545,1735277562887,500.0,0.00012521,2]
[346775546,1735277563103,500.0,0.00012795,2]
[346775547,1735277563150,1635.5,0.00012798,2]
[346775548,1735277563372,3140.04,0.00012521,2]
[346775549,1735277563831,1917.59,0.00011975,2]
[346775550,1735277564773,818.51,0.00011973,2]
[346775551,1735277564897,3140.04,0.00012795,2]
[346775552,1735277565005,1917.59,0.00012249,2]
[346775553,1735277565060,818.51,0.00012247,2]
[346775554,1735277565278,818.51,0.00012521,2]
[346775555,1735277565533,818.51,0.00012795,2]
[346775556,1735277565613,1917.59,0.00012523,2]
[346775557,1735277565813,1164.35,0.00011974,2]
[346775558,1735277566140,1917.59,0.00012797,2]
[346775559,1735277566856,1164.35,0.00012248,2]
[346775560,1735277567714,1164.35,0.00012522,2]
[346775561,1735277567874,153.0,0.00012246,2]
[346775562,1735277568048,1164.35,0.00012796,2]
[346775563,1735277568104,153.0,0.00012246,2]
[346775564,1735277568305,153.0,0.00012246,2]
[346775565,1735277568609,500.0,0.00011973,2]
[346775566,1735277568701,153.0,0.00012246,2]
[346775567,1735277568781,500.0,0.00012247,2]
[346775568,1735277568844,153.0,0.00012246,2]
[346775569,1735277568959,153.0,0.00012246,2]
[346775570,1735277569004,500.0,0.00012521,2]
[346775571,1735277569215,500.0,0.00012795,2]
[346775572,1735277570882,1105.53,0.00011973,2]
[346775573,1735277571182,1105.53,0.00012247,2]
[346775574,1735277571441,1105.53,0.00012521,2]
[346775575,1735277571702,1105.53,0.00012795,2]
[346775576,1735277573107,1247.61,0.00011973,2]
[346775577,1735277573354,1247.61,0.00012247,2]
[346775578,1735277573650,1247.61,0.00012521,2]
[346775579,1735277573908,1247.61,0.00012795,2]
[346775580,1735277574100,5457.63,0.00011974,2]
[346775581,1735277574371,153.0,0.00012246,2]
[346775582,1735277574613,153.0,0.00012246,2]
[346775583,1735277574658,5457.63,0.00012248,2]
[346775584,1735277574926,153.0,0.00012246,2]
[346775585,1735277575145,153.0,0.00012246,2]
[346775586,1735277575395,153.0,0.00012246,2]
[346775587,1735277575951,5457.63,0.00012522,2]
[346775588,1735277577035,5457.63,0.00012796,2]
[346775589,1735277578378,1029.81,0.00011973,2]
[346775590,1735277578470,1029.81,0.00012247,2]
[346775591,1735277578643,1029.81,0.00012521,2]
[346775592,1735277578755,1029.81,0.00012795,2]
[346775593,1735277579398,579.22,0.00011973,2]
[346775594,1735277579672,579.22,0.00012247,2]
[346775595,1735277579923,579.22,0.00012521,2]
[346775596,1735277580223,579.22,0.00012795,2]
[346775597,1735277580779,996.7,0.00011973,2]
[346775598,1735277581369,996.7,0.00012247,2]
[346775599,1735277582110,996.7,0.00012521,2]
[346775600,1735277582708,996.7,0.00012795,2]
[346775601,1735277583783,3844.43,0.00011974,2]
[346775602,1735277584459,3844.43,0.00012248,2]
[346775603,1735277585388,837.57,0.00011973,2]
[346775604,1735277585651,837.57,0.00012247,2]
[346775605,1735277585881,837.57,0.00012521,2]
[346775606,1735277586034,1084.1,0.00011973,2]
[346775607,1735277586134,837.57,0.00012795,2]
[346775608,1735277586219,3844.43,0.00012522,2]
[346775609,1735277587710,3844.43,0.00012796,2]
[346775610,1735277589160,1084.1,0.00012247,2]
[346775611,1735277589360,1084.1,0.00012521,2]
[346775612,1735277589457,1084.1,0.00012795,2]
[346775613,1735277589601,1744.69,0.00011976,2]
[346775614,1735277590342,1744.69,0.0001225,2]
[346775615,1735277591027,1744.69,0.00012524,2]
[346775616,1735277591190,3595.18,0.00011976,2]
[346775617,1735277592027,3595.18,0.0001225,2]
[346775618,1735277592329,1744.69,0.00012798,2]
[346775619,1735277592553,3595.18,0.00012524,2]
[346775620,1735277593132,3595.18,0.00012798,2]
[346775621,1735277593193,500.0,0.00011973,2]
[346775622,1735277593456,354.32076557,0.00012247,2]
[346775623,1735277594514,2000.0,0.00012906,2]
[346775624,1735277594587,2016.06,0.00011974,2]
[346775625,1735277596199,2016.06,0.00012248,2]
[346775626,1735277596736,2016.06,0.00012522,2]
[346775627,1735277597370,2016.06,0.00012796,2]
[346775628,1735277597465,500.0,0.00011973,2]
[346775629,1735277597737,500.0,0.00012247,2]
[346775630,1735277598234,500.0,0.00012521,2]
[346775631,1735277598395,500.0,0.00012795,2]
[346775632,1735277598450,500.0,0.00011973,2]
[346775633,1735277598556,500.0,0.00012247,2]
[346775634,1735277598751,793.51,0.00011973,2]
[346775635,1735277598821,500.0,0.00012521,2]
[346775636,1735277599245,500.0,0.00011973,2]
[346775637,1735277599319,500.0,0.00012795,2]
[346775638,1735277599364,2049.58,0.00011973,2]
[346775639,1735277599420,500.0,0.00012247,2]
[346775640,1735277599515,793.51,0.00012247,2]
[346775641,1735277599561,511.92030366,0.00012521,2]
[346775642,1735277599630,2049.58,0.00012247,2]
[346775643,1735277599693,793.51,0.00012521,2]
[346775644,1735277599974,793.51,0.00012795,2]
[346775645,1735277600067,2049.58,0.00012521,2]
[346775646,1735277600760,2049.58,0.00012795,2]
[346775647,1735277602665,1267.83,0.00011974,2]
[346775648,1735277603132,1267.83,0.00012248,2]
[346775649,1735277603312,500.0,0.00011973,2]
[346775650,1735277603607,500.0,0.00012247,2]
[346775651,1735277603868,500.0,0.00012521,2]
[346775652,1735277604067,1267.83,0.00012522,2]
[346775653,1735277604208,500.0,0.00012795,2]
[346775654,1735277605639,1267.83,0.00012796,2]
[346775655,1735277606752,583.84,0.00011975,2]
[346775656,1735277607405,583.84,0.00012249,2]
[346775657,1735277607913,500.0,0.00011973,2]
[346775658,1735277607973,945.15,0.00011973,2]
[346775659,1735277608178,500.0,0.00012247,2]
[346775660,1735277608245,945.15,0.00012247,2]
[346775661,1735277608306,583.84,0.00012523,2]
[346775662,1735277608466,500.0,0.00012521,2]
[346775663,1735277608545,945.15,0.00012521,2]
[346775664,1735277608726,500.0,0.00012795,2]
[346775665,1735277608849,945.15,0.00012795,2]
[346775666,1735277609726,794.79,0.00011973,2]
[346775667,1735277609777,583.84,0.00012797,2]
[346775668,1735277609856,794.79,0.00012247,2]
[346775669,1735277609963,794.79,0.00012521,2]
[346775670,1735277610152,794.79,0.00012795,2]
[346775671,1735277610533,500.0,0.00011973,2]
[346775672,1735277610841,500.0,0.00012247,2]
[346775673,1735277611098,500.0,0.00012521,2]
[346775674,1735277611493,500.0,0.00012795,2]
[346775675,1735277613076,651.4,0.00011973,2]
[346775676,1735277613347,651.4,0.00012247,2]
[346775677,1735277613590,651.4,0.00012521,2]
[346775678,1735277614308,651.4,0.00012795,2]
[346775679,1735277615716,500.0,0.00011973,2]
[346775680,1735277615995,500.0,0.00012247,2]
[346775681,1735277616218,500.0,0.00012521,2]
[346775682,1735277616271,1110.62,0.00011976,2]
[346775683,1735277616348,500.0,0.00011973,2]
[346775684,1735277616473,500.0,0.00012795,2]
[346775685,1735277616652,500.0,0.00012247,2]
[346775686,1735277616822,1110.62,0.0001225,2]
[346775687,1735277616890,500.0,0.00012521,2]
[346775688,1735277617151,500.0,0.00012795,2]
[346775689,1735277618286,1110.62,0.00012524,2]
[346775690,1735277618809,1110.62,0.00012798,2]
[346775691,1735277622060,500.0,0.00011974,2]
[346775692,1735277622428,500.0,0.00011973,2]
[346775693,1735277622635,500.0,0.00012248,2]
[346775694,1735277622825,500.0,0.00012247,2]
[346775695,1735277623101,500.0,0.00012521,2]
[346775696,1735277623356,500.0,0.00012795,2]
[346775697,1735277624144,784.91,0.00011973,2]
[346775698,1735277624197,500.0,0.00012522,2]
[346775699,1735277624569,784.91,0.00012247,2]
[346775700,1735277624627,710.7,0.00011973,2]
[346775701,1735277624714,784.91,0.00012521,2]
[346775702,1735277624786,710.7,0.00012247,2]
[346775703,1735277624920,500.0,0.00012796,2]
[346775704,1735277624986,784.91,0.00012795,2]
[346775705,1735277625051,710.7,0.00012521,2]
[346775706,1735277625321,710.7,0.00012795,2]
[346775707,1735277628762,153.0,0.0001224,2]
[346775708,1735277629002,153.0,0.0001224,2]
[346775709,1735277629218,153.0,0.0001224,2]
[346775710,1735277629427,153.0,0.0001224,2]
[346775711,1735277629648,153.0,0.0001224,2]
[346775712,1735277631945,250.0,0.00012618,2]
[346775713,1735277632661,1303.65,0.00011973,2]
[346775714,1735277632907,500.0,0.00011973,2]
[346775715,1735277632965,1303.65,0.00012247,2]
[346775716,1735277633208,500.0,0.00012247,2]
[346775717,1735277633306,1303.65,0.00012521,2]
[346775718,1735277633452,500.0,0.00012521,2]
[346775719,1735277633501,1303.65,0.00012795,2]
[346775720,1735277633694,500.0,0.00012795,2]
[346775721,1735277634740,153.0,0.0001224,2]
[346775722,1735277634981,153.0,0.0001224,2]
[346775723,1735277635148,153.0,0.0001224,2]
[346775724,1735277635297,500.0,0.00011973,2]
[346775725,1735277635357,153.0,0.0001224,2]
[346775726,1735277635487,500.0,0.00011973,2]
[346775727,1735277635569,500.0,0.00012247,2]
[346775728,1735277635765,500.0,0.00012247,2]
[346775729,1735277636060,500.0,0.00012521,2]
[346775730,1735277636155,500.0,0.00012795,2]
[346775731,1735277636217,500.0,0.00012521,2]
[346775732,1735277636383,500.0,0.00012795,2]
[346775733,1735277639107,2799.52,0.00011973,2]
[346775734,1735277640754,2799.52,0.00012247,2]
[346775735,1735277640914,790.76,0.00011973,2]
[346775736,1735277641175,790.76,0.00012247,2]
[346775737,1735277641449,790.76,0.00012521,2]
[346775738,1735277641497,2799.52,0.00012521,2]
[346775739,1735277641710,500.0,0.00011973,2]
[346775740,1735277641761,790.76,0.00012795,2]
[346775741,1735277641973,500.0,0.00012247,2]
[346775742,1735277642117,500.0,0.00011973,2]
[346775743,1735277642244,500.0,0.00012521,2]
[346775744,1735277642403,500.0,0.00012247,2]
[346775745,1735277642517,500.0,0.00012795,2]
[346775746,1735277642657,500.0,0.00012521,2]
[346775747,1735277642959,500.0,0.00012795,2]
[346775748,1735277643019,2799.52,0.00012795,2]
[346775749,1735277646055,506.27,0.00012328,2]
[346775750,1735277646299,506.27,0.00012328,2]
[346775751,1735277646798,506.27,0.00012521,2]
[346775752,1735277646929,500.0,0.00011973,2]
[346775753,1735277647087,637.26096891,0.00012247,2]
[346775754,1735277647179,506.27,0.00012795,2]
[346775755,1735277647311,848.56,0.00011973,2]
[346775756,1735277647628,848.56,0.00012247,2]
[346775757,1735277647870,848.56,0.00012521,2]
[346775758,1735277648112,848.56,0.00012795,2]
[346775759,1735277648533,2058.98,0.00011974,2]
[346775760,1735277649227,500.0,0.00011973,2]
[346775761,1735277649491,500.0,0.00011973,2]
[346775762,1735277649547,500.0,0.00012247,2]
[346775763,1735277649701,2058.98,0.00012248,2]
[346775764,1735277649750,500.0,0.00012247,2]
[346775765,1735277649801,500.0,0.00012521,2]
[346775766,1735277649999,500.0,0.00012521,2]
[346775767,1735277650054,500.0,0.00012795,2]
[346775768,1735277650309,500.0,0.00012795,2]
[346775769,1735277650403,2058.98,0.00012522,2]
[346775770,1735277650673,500.0,0.00011973,2]
[346775771,1735277651247,2058.98,0.00012796,2]
[346775772,1735277651300,5232.65,0.00011973,2]
[346775773,1735277651363,500.0,0.00012247,2]
[346775774,1735277651430,1144.1,0.00011975,2]
[346775775,1735277651503,335.01464932,0.00012521,2]
[346775776,1735277651611,5232.65,0.00012247,2]
[346775777,1735277651729,1144.1,0.00012249,2]
[346775778,1735277652940,1144.1,0.00012523,2]
[346775779,1735277652987,5232.65,0.00012521,2]
[346775780,1735277653166,500.0,0.00011973,2]
[346775781,1735277653431,500.0,0.00012247,2]
[346775782,1735277653658,1144.1,0.00012797,2]
[346775783,1735277653727,205.87139274,0.00012521,2]
[346775784,1735277653930,3021.98,0.00011976,2]
[346775785,1735277653985,5232.65,0.00012795,2]
[346775786,1735277654433,3021.98,0.0001225,2]
[346775787,1735277654968,3021.98,0.00012524,2]
[346775788,1735277655622,500.0,0.00011973,2]
[346775789,1735277655672,590.83,0.00011973,2]
[346775790,1735277655797,3021.98,0.00012798,2]
[346775791,1735277655897,500.0,0.00012247,2]
[346775792,1735277656011,590.83,0.00012247,2]
[346775793,1735277656212,500.0,0.00012521,2]
[346775794,1735277656294,590.83,0.00012521,2]
[346775795,1735277656490,500.0,0.00012795,2]
[346775796,1735277656594,590.83,0.00012795,2]
[346775797,1735277659689,502.31900174,0.00011973,2]
[346775798,1735277660566,2995.98,0.00011976,2]
[346775799,1735277661539,729.54,0.00011973,2]
[346775800,1735277661613,729.54,0.00012247,2]
[346775801,1735277661721,2995.98,0.0001225,2]
[346775802,1735277661778,729.54,0.00012521,2]
[346775803,1735277662012,729.54,0.00012795,2]
[346775804,1735277662391,2995.98,0.00012524,2]
[346775805,1735277662936,2995.98,0.00012798,2]
[346775806,1735277663349,1867.46,0.00011974,2]
[346775807,1735277663807,1867.46,0.00012248,2]
[346775808,1735277664217,1158.1,0.00011973,2]
[346775809,1735277664318,1158.1,0.00012247,2]
[346775810,1735277664577,1158.1,0.00012521,2]
[346775811,1735277664837,1158.1,0.00012795,2]
[346775812,1735277665074,1867.46,0.00012522,2]
[346775813,1735277665963,802.6,0.00011973,2]
[346775814,1735277666015,500.0,0.00011973,2]
[346775815,1735277666219,802.6,0.00012247,2]
[346775816,1735277666266,500.0,0.00012247,2]
[346775817,1735277666321,1867.46,0.00012796,2]
[346775818,1735277666479,802.6,0.00012521,2]
[346775819,1735277666527,500.0,0.00012521,2]
[346775820,1735277666585,811.91,0.00011973,2]
[346775821,1735277666764,500.0,0.00012795,2]
[346775822,1735277666814,802.6,0.00012795,2]
[346775823,1735277666862,811.91,0.00012247,2]
[346775824,1735277667146,811.91,0.00012521,2]
[346775825,1735277667412,811.91,0.00012795,2]
[346775826,1735277673144,1597.99,0.00011974,2]
[346775828,1735277674015,1597.99,0.00012248,2]
[346775829,1735277674755,1597.99,0.00012522,2]
[346775830,1735277675747,1597.99,0.00012796,2]
[346775831,1735277676239,500.0,0.00011973,2]
[346775832,1735277676514,500.0,0.00012247,2]
[346775833,1735277676778,500.0,0.00012521,2]
[346775834,1735277677014,500.0,0.00012795,2]
[346775835,1735277678626,3098.1,0.00011973,2]
[346775836,1735277679336,3098.1,0.00012247,2]
[346775837,1735277679402,590.82,0.00011973,2]
[346775838,1735277679667,590.82,0.00012247,2]
[346775839,1735277679914,590.82,0.00012521,2]
[346775840,1735277680173,590.82,0.00012795,2]
[346775841,1735277680564,564.44,0.00011973,2]
[346775842,1735277680815,564.44,0.00012247,2]
[346775843,1735277681215,564.44,0.00012521,2]
[346775844,1735277681454,564.44,0.00012795,2]
[346775845,1735277683084,4548.02,0.00011974,2]
[346775846,1735277683574,153.0,0.00012235,2]
[346775847,1735277683640,4548.02,0.00012248,2]
[346775848,1735277683788,153.0,0.00012235,2]
[346775849,1735277683991,153.0,0.00012235,2]
[346775850,1735277684209,153.0,0.00012235,2]
[346775851,1735277684531,153.0,0.00012235,2]
[346775852,1735277685700,4548.02,0.00012522,2]
[346775853,1735277685924,11746.91,0.00011973,2]
[346775854,1735277686002,521.35434195,0.00011973,2]
[346775855,1735277686353,4548.02,0.00012796,2]
[346775856,1735277686908,11746.91,0.00012247,2]
[346775857,1735277687739,11746.91,0.00012521,2]
[346775858,1735277688326,11746.91,0.00012795,2]
[346775859,1735277688446,500.0,0.00011973,2]
[346775860,1735277688691,500.0,0.00012247,2]
[346775861,1735277688952,500.0,0.00011973,2]
[346775862,1735277689142,500.0,0.00012521,2]
[346775863,1735277689195,153.0,0.00012234,2]
[346775864,1735277689252,500.0,0.00012247,2]
[346775865,1735277689307,12350.43,0.00011973,2]
[346775866,1735277689401,153.0,0.00012234,2]
[346775867,1735277689454,500.0,0.00012795,2]
[346775868,1735277689506,504.70667494,0.00012521,2]
[346775869,1735277689580,153.0,0.00012234,2]
[346775870,1735277689802,153.0,0.00012234,2]
[346775871,1735277690098,12350.43,0.00012247,2]
[346775872,1735277690341,1000.0,0.00012627,2]
[346775873,1735277690405,2088.69,0.00011973,2]
[346775874,1735277690681,2088.69,0.00012247,2]
[346775875,1735277690787,12350.43,0.00012521,2]
[346775876,1735277690947,2088.69,0.00012521,2]
[346775877,1735277691445,12350.43,0.00012795,2]
[346775878,1735277692203,2088.69,0.00012795,2]
[346775879,1735277693642,500.0,0.00011973,2]
[346775880,1735277693738,500.0,0.00012247,2]
[346775881,1735277694709,500.0,0.00011973,2]
[346775882,1735277695111,500.0,0.00012247,2]
[346775883,1735277695271,500.0,0.00011973,2]
[346775884,1735277695362,500.0,0.00012521,2]
[346775885,1735277695541,500.0,0.00012247,2]
[346775886,1735277695620,500.0,0.00012795,2]
[346775887,1735277695797,500.0,0.00012521,2]
[346775888,1735277696051,639.07938468,0.00012795,2]
[346775889,1735277697045,500.0,0.00011973,2]
[346775890,1735277697298,500.0,0.00012247,2]
[346775891,1735277697575,500.0,0.00012521,2]
[346775892,1735277697825,500.0,0.00012795,2]
[346775893,1735277698054,500.0,0.00011973,2]
[346775894,1735277698350,500.0,0.00012247,2]
[346775895,1735277698626,394.55043582,0.00012521,2]
[346775896,1735277699986,861.97,0.00011973,2]
[346775897,1735277700056,518.80964689,0.00011973,2]
[346775898,1735277700172,696.99,0.00011973,2]
[346775899,1735277700240,861.97,0.00012247,2]
[346775900,1735277700432,696.99,0.00012247,2]
[346775901,1735277700514,861.97,0.00012521,2]
[346775902,1735277700673,696.99,0.00012521,2]
[346775903,1735277700789,861.97,0.00012795,2]
[346775904,1735277701240,696.99,0.00012795,2]
[346775905,1735277702241,500.0,0.00011973,2]
[346775906,1735277702569,500.0,0.00012247,2]
[346775907,1735277702807,500.0,0.00012521,2]
[346775908,1735277703062,500.0,0.00012795,2]
[346775909,1735277706106,2235.23,0.00011975,2]
[346775910,1735277707123,2235.23,0.00012249,2]
[346775911,1735277708356,2235.23,0.00012523,2]
[346775912,1735277708568,534.87,0.00011973,2]
[346775913,1735277708634,725.38,0.00010724,2]
[346775914,1735277708839,725.38,0.00012987,2]
[346775915,1735277708953,534.87,0.00012247,2]
[346775916,1735277709160,534.87,0.00012521,2]
[346775917,1735277709222,989.36,0.00011973,2]
[346775918,1735277709465,2235.23,0.00012797,2]
[346775919,1735277709517,534.87,0.00012795,2]
[346775920,1735277709568,989.36,0.00012247,2]
[346775921,1735277709813,989.36,0.00012521,2]
[346775923,1735277710058,989.36,0.00012795,2]
[346775924,1735277710204,631.96,0.00011973,2]
[346775925,1735277710460,631.96,0.00012247,2]
[346775926,1735277710726,631.96,0.00012521,2]
[346775927,1735277710988,631.96,0.00012795,2]
[346775928,1735277711538,500.0,0.00011974,2]
[346775929,1735277712176,500.0,0.00012248,2]
[346775930,1735277712372,1056.52,0.00011974,2]
[346775931,1735277713120,500.0,0.00011973,2]
[346775932,1735277713362,500.0,0.00012522,2]
[346775933,1735277713413,500.0,0.00012247,2]
[346775934,1735277713544,372.702,0.00012258,2]
[346775935,1735277713603,1056.52,0.00012248,2]
[346775936,1735277713655,500.0,0.00012521,2]
[346775937,1735277714177,500.0,0.00012795,2]
[346775938,1735277714465,500.0,0.00012796,2]
[346775939,1735277714577,1056.52,0.00012522,2]
[346775940,1735277715063,1056.52,0.00012796,2]
[346775941,1735277717072,2518.32,0.00011976,2]
[346775942,1735277717942,8632.92,0.00011973,2]
[346775943,1735277717995,2518.32,0.0001225,2]
[346775944,1735277718599,8632.92,0.00012247,2]
[346775945,1735277718659,896.04,0.00011973,2]
[346775946,1735277718716,2518.32,0.00012524,2]
[346775947,1735277718863,896.04,0.00012247,2]
[346775948,1735277719101,896.04,0.00012521,2]
[346775949,1735277719289,8632.92,0.00012521,2]
[346775950,1735277719371,896.04,0.00012795,2]
[346775951,1735277719431,2518.32,0.00012798,2]
[346775952,1735277719709,500.0,0.00011973,2]
[346775953,1735277719989,8632.92,0.00012795,2]
[346775954,1735277720235,500.0,0.00012247,2]
[346775955,1735277720483,500.0,0.00012521,2]
[346775956,1735277720775,500.0,0.00012795,2]
[346775957,1735277722251,5749.27,0.00011974,2]
[346775958,1735277723006,5749.27,0.00012248,2]
[346775959,1735277723903,5749.27,0.00012522,2]
[346775960,1735277725018,5749.27,0.00012796,2]
[346775961,1735277725250,500.0,0.00011973,2]
[346775962,1735277725511,500.0,0.00012247,2]
[346775963,1735277725782,500.0,0.00012521,2]
[346775964,1735277726087,500.0,0.00012795,2]
[346775965,1735277728014,1102.0,0.00012258,2]
[346775966,1735277733892,505.63812765,0.00011973,2]
[346775967,1735277735377,513.12517934,0.00011973,2]
[346775968,1735277735434,500.0,0.00011973,2]
[346775969,1735277735608,500.0,0.00012247,2]
[346775970,1735277735872,500.0,0.00012521,2]
[346775971,1735277736230,500.0,0.00012795,2]
[346775972,1735277736467,2459.34,0.00011975,2]
[346775973,1735277736706,989.52,0.00011973,2]
[346775974,1735277736968,2459.34,0.00012249,2]
[346775975,1735277737016,989.52,0.00012247,2]
[346775976,1735277737241,989.52,0.00012521,2]
[346775977,1735277737492,2459.34,0.00012523,2]
[346775978,1735277737545,989.52,0.00012795,2]
[346775979,1735277738131,2459.34,0.00012797,2]
[346775980,1735277738884,500.0,0.00011973,2]
[346775981,1735277739164,500.0,0.00012247,2]
[346775982,1735277739441,500.0,0.00012521,2]
[346775983,1735277739692,500.0,0.00012795,2]
[346775984,1735277742125,902.28,0.00011973,2]
[346775985,1735277742396,902.28,0.00012247,2]
[346775986,1735277742653,902.28,0.00012521,2]
[346775987,1735277742911,902.28,0.00012795,2]
[346775988,1735277742975,500.0,0.00011973,2]
[346775989,1735277743238,500.0,0.00012247,2]
[346775990,1735277743511,500.0,0.00012521,2]
[346775991,1735277743774,500.0,0.00012795,2]
[346775992,1735277745855,1142.14,0.00011973,2]
[346775993,1735277745946,1142.14,0.00012247,2]
[346775994,1735277746103,1142.14,0.00012521,2]
[346775995,1735277746360,1142.14,0.00012795,2]